Cogmind - Beta 11 X10 @@@ ROGUE MODE // 2022.02.05 @ 19:10:21 Player: leiavoia Result: Destroyed by Y-54 Guardian with Flak Gun Performance ------------- Evolutions (4) 2000 Regions Visited (14) 2800 Robots Destroyed (116) 580 Value Destroyed (4702) 4702 Prototype IDs (19) 380 Alien Tech Used (0) 0 Bonus (2603) 2603 TOTAL SCORE: 13065 Bonus ------- High Alert Combat Kills 438 Follower Combat Kills 911 Entered DSFs 500 Network Hubs Disabled 400 Met R17 at Cetus 500 Friendly Fire -146 Cogmind --------- Core Integrity 0/850 Matter 155/300 Energy 4/100 System Corruption 23% Temperature Cool (14) Movement Treading (160) Location -6/Hub_04(d) Parts ------- > --- POWER (1) -------- (None) > --- PROPULSION (5) --- Centrium Heavy Treads Centrium Heavy Treads > --- UTILITY (6) ------ Huge Storage Unit Trap Extractor (0/4) > --- WEAPON (3) ------- Plasma Cannon > --- INVENTORY (25) --- Improved Treads Improved Treads Centrium Heavy Treads Advanced Heat Sink High-capacity Storage Unit Improved Sensor Array Improved Signal Interpreter Advanced Terrain Scanner High-powered Tractor Beam Plasma Rifle Advanced Variable Charge Gun KE Penetrator KE Penetrator Advanced Datajack Phasing Sabre Peak State ------------ > --- POWER ------------ Quantum Reactor > --- PROPULSION ------- Improved Treads Centrium Heavy Treads Centrium Heavy Treads > --- UTILITY ---------- Advanced Heat Sink Huge Storage Unit Improved Medium Armor Plating Improved Medium Armor Plating Centrium Medium Armor Plating Centrium Medium Armor Plating > --- WEAPON ----------- Plasma Cannon Plasma Cannon Advanced KE Penetrator > --- INVENTORY -------- Improved Treads Improved Treads Centrium Heavy Treads Advanced Heat Sink High-capacity Storage Unit Improved Sensor Array Improved Signal Interpreter Advanced Terrain Scanner High-powered Tractor Beam Trap Extractor Plasma Rifle Advanced Variable Charge Gun KE Penetrator KE Penetrator Gauss Cannon Advanced Datajack Phasing Sabre [Rating: 103] Favorites ----------- Power Ion Engine Engine Ion Engine Reactor Quantum Reactor Propulsion Light Treads Treads Light Treads Leg Aluminum Leg Utility High-capacity Storage Unit Device Heat Sink Storage High-capacity Storage Unit Processor Advanced Terrain Scan Processor Hackware Improved Hacking Suite Protection Improved Light Armor Plating Weapon Spread Laser Energy Gun Spread Laser Energy Cannon Plasma Cannon Ballistic Gun Enhanced Autogun Ballistic Cannon Flak Cannon Launcher Rocket Launcher Special Weapon Remote Datajack Slashing Weapon Phasing Sabre Special Melee Weapon Improved Datajack Build | -11 -10 -10 -9 -9 -9 -8 -8 -7 -7 -6 -6 -6 -6 -6 ------- Run | Scr Mat Min Mat Min Exi Min Mat Fac DSF Fac Ext Cet Arc Hub Slots Evolved 8 | . . . 2 . . . 2 2 . 2 . . . . Power . | . . . . . . . . . . . . . . . Propulsion 3 | . . . 1 . . . . 1 . 1 . . . . Utility 4 | . . . 1 . . . 1 1 . 1 . . . . Weapon 1 | . . . . . . . 1 . . . . . . . Parts Attached 127 | 1 9 . 6 3 . 3 12 2 9 5 31 26 5 15 Power 11 | . 2 . . 1 . 1 2 . . . 1 3 . 1 Engine 7 | . 2 . . 1 . 1 2 . . . 1 . . . Core . | . . . . . . . . . . . . . . . Reactor 4 | . . . . . . . . . . . . 3 . 1 Propulsion 25 | . 2 . 4 . . . 3 1 3 1 6 4 1 . Treads 22 | . . . 3 . . . 3 1 3 1 6 4 1 . Leg 3 | . 2 . 1 . . . . . . . . . . . Wheel . | . . . . . . . . . . . . . . . Hover . | . . . . . . . . . . . . . . . Flight . | . . . . . . . . . . . . . . . Utility 46 | 1 2 . 2 2 . . 3 1 4 2 7 9 3 10 Device 19 | 1 1 . 2 1 . . 2 . 1 1 2 4 1 3 Storage 3 | . 1 . . 1 . . . . . . . . 1 . Processor 4 | . . . . . . . 1 . . 1 . 2 . . Hackware 3 | . . . . . . . . . . . . . . 3 Protection 17 | . . . . . . . . 1 3 . 5 3 1 4 Artifact . | . . . . . . . . . . . . . . . Weapon 45 | . 3 . . . . 2 4 . 2 2 17 10 1 4 Energy Gun 6 | . 2 . . . . 1 2 . . . 1 . . . Energy Cannon 12 | . . . . . . . . . 1 1 6 3 1 . Ballistic Gun 11 | . 1 . . . . . 2 . . . 1 6 . 1 Ballistic Cannon 6 | . . . . . . 1 . . . . 3 . . 2 Launcher 5 | . . . . . . . . . 1 1 2 1 . . Special Weapon 3 | . . . . . . . . . . . 3 . . . Impact Weapon . | . . . . . . . . . . . . . . . Slashing Weapon 1 | . . . . . . . . . . . . . . 1 Piercing Weapon . | . . . . . . . . . . . . . . . Special Melee Weapon 1 | . . . . . . . . . . . 1 . . . Unidentified Prototypes 6 | . . . . . . . 3 . . . . 3 . . Parts Lost 26 | . 1 . . 1 . . . . . . 4 10 . 10 Power 4 | . . . . 1 . . . . . . . 1 . 2 Propulsion 4 | . . . . . . . . . . . 2 1 . 1 Utility 10 | . 1 . . . . . . . . . 1 4 . 4 Weapon 8 | . . . . . . . . . . . 1 4 . 3 Highest Loss Streak 10 | . 1 . . 1 . . . . . . 2 6 . 10 To Critical Strikes 2 | . . . . . . . . . . . 1 1 . . Average Slot Usage (%) 97 | . 99 100 100 100 100 100 99 84 100 100 99 82 84 82 Engine 8 | . 14 14 11 11 11 11 9 7 7 6 6 1 . . Treads 24 | . . . 11 33 33 33 27 23 30 33 32 17 17 19 Leg 4 | . 28 28 22 . . . . . . . . . . . Device 14 | . 13 14 22 22 22 22 22 15 7 13 6 4 8 7 Storage 8 | . 14 14 11 11 11 11 9 7 7 6 6 6 6 6 Processor 6 | . . . . . . . 4 7 7 13 13 19 20 8 Protection 4 | . . . . . . . . . 14 6 12 6 3 7 Energy Gun 11 | . 7 28 22 22 22 18 16 7 7 6 3 . . . Energy Cannon 2 | . . . . . . . . . 1 1 6 6 13 13 Ballistic Gun 4 | . 21 . . . . . . 7 7 6 5 12 6 2 Ballistic Cannon 1 | . . . . . . 3 9 7 2 . . . . . Naked Turns . | . . . . . . . . . . . . . . . Heaviest Build 142 | 11 32 32 33 53 53 58 66 68 74 75 87 91 125 142 Greatest Support 183 | 20 20 20 60 60 60 60 62 82 82 102 110 180 183 183 Greatest Overweight (x) 1 | . 1 1 1 . . . 1 1 . . . . . . Average Overweight (x) . | . . 1 . . . . . . . . . . . . Largest Inventory Capacity 25 | 8 15 15 15 20 20 20 20 20 20 20 20 20 25 25 Average Capacity 19 | 8 13 15 15 18 20 20 20 20 20 20 20 20 21 25 Most Carried 25 | 8 15 15 15 17 20 20 20 20 20 20 20 20 25 25 Average Carried 18 | 6 10 15 14 15 19 19 19 19 19 19 19 18 21 21 Final Capacity 25 | 8 15 15 15 20 20 20 20 20 20 20 20 20 25 25 Final Carried 25 | 8 15 15 15 17 20 20 20 18 20 20 20 20 25 16 Class Distribution -------------------- 39% | Mutant 16% | Scavenger-Mutant 9% | Scavenger-Gunner 9% | Scavenger-Skirmisher 6% | Scavenger-Tank 6% | Skirmisher 5% | Commander-Mutant 4% | Derelict-Mutant Dominant Class ---------------- Mutant | -10/Materials Mutant | -10/Mines Scavenger-Mutant | -9/Materials Mutant | -9/Mines Mutant | -9/Exiles Mutant | -8/Mines Scavenger-Skirmisher | -8/Materials Scavenger-Skirmisher | -7/Factory Mutant | -7/DSF Scavenger-Mutant | -6/Factory Scavenger-Mutant | -6/Extension Scavenger-Gunner | -6/Cetus Scavenger-Gunner | -6/Archives Hacker-Mutant | -6/Hub_04(d) Resources | -11 -10 -10 -9 -9 -9 -8 -8 -7 -7 -6 -6 -6 -6 -6 ----------- Run | Scr Mat Min Mat Min Exi Min Mat Fac DSF Fac Ext Cet Arc Hub Matter Collected 2970 | 236 123 . 50 35 . 36 306 . 162 95 1057 677 118 75 Remotely 234 | . . . . . . . . . . . . 234 . . Salvage Created 4870 | 51 305 18 254 160 . 72 605 . . 183 1121 921 386 794 Parts 246 | 4 22 . 16 6 . 7 31 . . 4 52 42 18 44 Haulers Intercepted 5 | . . . 1 . . . 2 . . . 2 . . . Recyclers Shooed 5 | 1 2 . . . . . 1 . . . 1 . . . Parts Field Recycled . | . . . . . . . . . . . . . . . Retrieved Matter . | . . . . . . . . . . . . . . . Parts Self-Destructed . | . . . . . . . . . . . . . . . Prevented . | . . . . . . . . . . . . . . . Kills | -11 -10 -10 -9 -9 -9 -8 -8 -7 -7 -6 -6 -6 -6 -6 ------- Run | Scr Mat Min Mat Min Exi Min Mat Fac DSF Fac Ext Cet Arc Hub Combat Hostiles Destroyed 82 | . 4 5 7 5 . 1 13 . . 3 16 19 4 5 Guns 46 | . 4 5 7 5 . 1 8 . . 1 5 9 . 1 Cannons 28 | . . . . . . . 5 . . 2 8 9 3 1 AOE 5 | . . . . . . . . . . . 2 . . 3 Classes Destroyed 14 | 1 4 1 3 . . 1 . . . . 3 . . 1 Worker 8 | . 1 . . . . . . . . . 3 . . 4 Builder 7 | . . . . . . . . . . . 2 . . 5 Tunneler 7 | 3 . . . 1 . 2 . . . . . . . 1 Hauler 5 | . . . 1 . . . 2 . . . 2 . . . Recycler 6 | . 1 . 1 . . . 1 . . . 1 . . 2 Operator 3 | . . . . . . . . . . . 1 . 2 . Watcher 3 | . 1 . . . . . 2 . . . . . . . Swarmer 18 | . . . 4 . . . 5 . . . 2 7 . . Grunt 30 | . 4 . 2 5 . . 5 . . 3 6 4 . 1 Protector 1 | . . . . . . . . . . . . . . 1 Sentry 15 | . . . 1 . . . 3 . . . 5 . 4 2 Hunter 4 | . . . . . . 1 . . . . 2 1 . . Programmer 1 | . . . . . . . . . . . 1 . . . Cetus Guard 7 | . . . . . . . . . . . . 7 . . Lightning 1 | . . . . . . . . . . . . . . 1 Assembled 5 | . . 5 . . . . . . . . . . . . Best Kill Streak 14 | 2 4 3 6 3 . 1 6 . . 2 5 8 2 14 Combat Bots Only 8 | . 2 3 4 3 . 1 3 . . 2 3 8 2 3 Max Kills in Single Turn 10 | 1 2 1 1 2 . 1 1 . . 1 3 1 1 10 Gunslinging 1 | . . . . 1 . . . . . . . . . . Exploded 2 | . . . . . . . . . . . 1 . . 2 Melee . | . . . . . . . . . . . . . . . Uniques/NPCs Destroyed . | . . . . . . . . . . . . . . . Combat | -11 -10 -10 -9 -9 -9 -8 -8 -7 -7 -6 -6 -6 -6 -6 -------- Run | Scr Mat Min Mat Min Exi Min Mat Fac DSF Fac Ext Cet Arc Hub Damage Taken 10815 | . 337 192 120 211 . 74 354 . . 172 2650 3758 333 2614 Core 1104 | . 87 64 31 40 . . 27 . . . 346 288 25 196 Absorbed by Shields . | . . . . . . . . . . . . . . . Reduced by Siege Mode 179 | . . . . . . . . . . . . 158 . 21 Core Remaining (%) 83 | 100 . 39 . . . 82 95 . 100 . . . . . Volleys Fired 332 | 13 23 8 15 12 . 5 36 . 4 19 100 52 17 28 Largest 3 | 2 2 2 2 2 . 2 3 . 1 3 3 3 3 3 Hottest 237 | 40 85 130 130 130 . 130 157 . 80 160 237 143 205 195 Shots Fired 754 | 26 46 16 30 24 . 10 103 . 4 41 203 143 49 59 Gun 470 | 26 46 16 30 24 . 9 67 . . 22 75 114 17 24 Cannon 242 | . . . . . . 1 36 . 2 14 94 28 32 35 Launcher 19 | . . . . . . . . . 2 5 11 1 . . Special 23 | . . . . . . . . . . . 23 . . . Kinetic 339 | 26 40 . . . . 1 36 . . 11 66 114 17 28 Thermal 341 | . 6 16 30 24 . 9 35 . 2 25 103 28 32 31 Explosive 19 | . . . . . . . . . 2 5 11 1 . . Electromagnetic 32 | . . . . . . . 32 . . . . . . . Robot Hit Streak 26 | 8 12 5 11 7 . 14 9 . . 5 14 22 26 11 Robot Miss Streak 6 | 1 5 4 6 4 . 1 6 . . 5 5 2 2 4 Penetration Max 1 | . . . . . . . . . . . 1 1 . 1 Secondary Targets 5 | . 1 . . 2 . . . . . . . 2 . . Max Gunslinging Chain 1 | . 1 . . 1 . . . . . . . 1 . . Shots Hit Robots 507 | 19 29 15 26 22 . 7 70 . . 18 127 113 32 29 Core Hits 359 | 8 21 26 32 32 . 11 49 . . 8 82 45 15 30 Critical Kills 6 | . . . . . . . . . . . 3 2 . 1 Critical Parts Destroyed 7 | . . . . . . . . . . . 2 2 1 2 Critical Strikes 15 | . . . . . . . 1 . . . 5 5 1 3 Burn 1 | . . . . . . . 1 . . . . . . . Meltdown 2 | . . . . . . . . . . . 1 1 . . Destroy 12 | . . . . . . . . . . . 4 4 1 3 Melee Attacks 3 | . . . . . . . . . . . . . . 3 Impact . | . . . . . . . . . . . . . . . Slashing 3 | . . . . . . . . . . . . . . 3 Piercing . | . . . . . . . . . . . . . . . Sneak Attacks . | . . . . . . . . . . . . . . . Combat Hostiles . | . . . . . . . . . . . . . . . Follow-up Attacks . | . . . . . . . . . . . . . . . Damage Inflicted 13487 | 146 275 190 296 314 . 134 1246 . . 390 4194 2735 921 2646 Guns 6123 | 146 272 190 296 314 . 134 767 . . 207 1133 1884 268 512 Cannons 3997 | . . . . . . . 404 . . 183 1736 685 653 336 Explosions 3364 | . . . . . . . 75 . . . 1325 166 . 1798 Melee . | . . . . . . . . . . . . . . . Ramming 3 | . 3 . . . . . . . . . . . . . Kinetic 4378 | 146 202 . . . . . 404 . . 121 841 1884 268 512 Thermal 5358 | . 70 190 296 314 . 134 383 . . 269 2028 685 653 336 Explosive 1491 | . . . . . . . . . . . 1325 166 . . Electromagnetic 2257 | . . . . . . . 459 . . . . . . 1798 Impact . | . . . . . . . . . . . . . . . Slashing . | . . . . . . . . . . . . . . . Piercing . | . . . . . . . . . . . . . . . Highest Corruption 23 | . . . . . . . . . . . . . . 23 Average Corruption 11 | . . . . . . . . . . . . . . 11 Corruption Purged . | . . . . . . . . . . . . . . . Corruption Blocked . | . . . . . . . . . . . . . . . Effects 4 | . . . . . . . . . . . . . . 4 Message Errors 1 | . . . . . . . . . . . . . . 1 Energy Discharges 1 | . . . . . . . . . . . . . . 1 Data Loss (minor) 1 | . . . . . . . . . . . . . . 1 Misfires 1 | . . . . . . . . . . . . . . 1 Overload Shots . | . . . . . . . . . . . . . . . Overflow Damage 171 | . . . . . . . 14 . . . 41 . 21 95 Projectiles 57 | . . . . . . . . . . . 36 . 21 . Explosions 114 | . . . . . . . 14 . . . 5 . . 95 Melee . | . . . . . . . . . . . . . . . Knockbacks 14 | . . . . . . . 13 . . . 1 . . . Impact . | . . . . . . . . . . . . . . . Kinetic 14 | . . . . . . . 13 . . . 1 . . . Secondary . | . . . . . . . . . . . . . . . Self-Inflicted Damage 196 | . . . . . . . . . . . . . . 196 Shots 2 | . . . . . . . . . . . . . . 2 Rammed . | . . . . . . . . . . . . . . . Targets Rammed 1 | . 1 . . . . . . . . . . . . . Kicked 1 | . 1 . . . . . . . . . . . . . Crushed . | . . . . . . . . . . . . . . . Highest Temperature 551 | . 54 234 138 229 . 90 120 . . 225 551 283 327 519 Average Temperature 100 | . 26 99 55 97 . 36 44 . . 123 95 89 107 224 Received Heat Transfer 1978 | . 195 . 27 126 . . 99 . . 81 600 568 27 255 Effects 11 | . . . . . . . . . . . 6 2 . 3 Shutdowns 2 | . . . . . . . . . . . 1 . . 1 Energy Bleed 1 | . . . . . . . . . . . 1 . . . Interference 3 | . . . . . . . . . . . . 2 . 1 Matter Decay 3 | . . . . . . . . . . . 3 . . . Damage (core) 2 | . . . . . . . . . . . 1 . . 1 Siege Activations 4 | . . . . . . . . . . . . 3 . 1 Total Turns 128 | . . . . . . . . . . . . 71 . 57 Longest Duration 57 | . . . . . . . . . . . . 37 . 57 Robots Corrupted 1 | . . . . . . . . . . . . . . 1 Combat Hostiles . | . . . . . . . . . . . . . . . Parts Fried 8 | . . . . . . . 2 . . . . . . 6 Impact Corruptions . | . . . . . . . . . . . . . . . Robots Melted 3 | . . . . . . . . . . . 1 1 1 . Combat Hostiles 3 | . . . . . . . . . . . 1 1 1 . Parts Melted 18 | . . . . 1 . 1 1 . . 2 5 2 3 3 Heat Transferred 9155 | . 95 230 375 385 . 172 840 . . 535 3722 1100 1150 551 Parts Sabotaged 1 | . . . . . . . . . . . . . . 1 Parts Stolen . | . . . . . . . . . . . . . . . Parts Stripped . | . . . . . . . . . . . . . . . Power Chain Reactions 1 | . . . . . . . 1 . . . . . . . Missiles Intercepted . | . . . . . . . . . . . . . . . Alert | -11 -10 -10 -9 -9 -9 -8 -8 -7 -7 -6 -6 -6 -6 -6 ------- Run | Scr Mat Min Mat Min Exi Min Mat Fac DSF Fac Ext Cet Arc Hub Peak Influence 1074 | 15 162 . 227 203 . 41 313 . 12 127 544 696 411 1074 Initial 294 | . 9 . . 88 . . . . 3 6 61 294 198 143 Average 138 | 5 69 . 89 123 . 13 106 . 6 53 139 496 343 569 Maximum Alert Level 3 | . . . 1 1 . . 1 . . . 2 2 2 3 Low Security (%) 77 | 100 100 100 75 93 . 100 72 100 100 100 82 . 5 48 Level 1 10 | . . . 24 6 . . 27 . . . 6 14 64 . Level 2 9 | . . . . . . . . . . . 10 85 30 . Level 3 1 | . . . . . . . . . . . . . . 51 Level 4 . | . . . . . . . . . . . . . . . Level 5 . | . . . . . . . . . . . . . . . High Security . | . . . . . . . . . . . . . . . Max Security . | . . . . . . . . . . . . . . . Squads Dispatched 12 | . . . 1 . . . 1 . 1 2 6 . . 1 Investigation 9 | . . . 1 . . . 1 . . 2 5 . . . Extermination . | . . . . . . . . . . . . . . . Reinforcement 2 | . . . . . . . . . 1 . 1 . . . Assault 1 | . . . . . . . . . . . . . . 1 Garrison . | . . . . . . . . . . . . . . . Intercept . | . . . . . . . . . . . . . . . Construction Impeded 1 | . . . . . . . . . . . 1 . . . Haulers Reinforced . | . . . . . . . . . . . . . . . Active Scanning Responses . | . . . . . . . . . . . . . . . Cargo Convoy Interrupts . | . . . . . . . . . . . . . . . Stealth | -11 -10 -10 -9 -9 -9 -8 -8 -7 -7 -6 -6 -6 -6 -6 --------- Run | Scr Mat Min Mat Min Exi Min Mat Fac DSF Fac Ext Cet Arc Hub Distress Signals 11 | . 2 1 1 . . . 2 . . . 1 2 . 2 Communications Jammed . | . . . . . . . . . . . . . . . Distress Signals . | . . . . . . . . . . . . . . . Times Spotted 156 | . 11 12 9 5 . 1 20 . . 3 42 25 8 20 Peak Tracking Total 13 | . 5 7 6 3 . 1 4 . . 3 5 10 1 13 Tactical Retreats 5 | . 1 . 1 . . . . . . . 1 . . 2 Traps | -11 -10 -10 -9 -9 -9 -8 -8 -7 -7 -6 -6 -6 -6 -6 ------- Run | Scr Mat Min Mat Min Exi Min Mat Fac DSF Fac Ext Cet Arc Hub Traps Triggered 2 | . 1 . . . . . 1 . . . . . . . Indirectly . | . . . . . . . . . . . . . . . Trap Hack Attempts 31 | . . . . . . . . . . . 31 . . . Triggered . | . . . . . . . . . . . . . . . Disarmed 6 | . . . . . . . . . . 6 . . . . Reprogrammed 4 | . . . . . . . . . . . 4 . . . Reused 1 | . . . . . . . . . . . . . . 1 Traps Extracted 4 | . . . . . . . . . . . 4 . . . Installed 1 | . . . . . . . . . . . . . . 1 Triggered 1 | . . . . . . . . . . . . . . 1 Most Traps Carried 4 | . . . . . . . . . . . 4 4 4 4 Machines | -11 -10 -10 -9 -9 -9 -8 -8 -7 -7 -6 -6 -6 -6 -6 ---------- Run | Scr Mat Min Mat Min Exi Min Mat Fac DSF Fac Ext Cet Arc Hub Machines Disabled 45 | . . . . . . . 1 . . 1 5 . 4 34 Max in Single Turn 32 | . . . . . . . 1 . . 1 2 . 1 32 Garrison Access 1 | . . . . . . . . . . . . . . 1 Network Hub 2 | . . . . . . . . . . . . . . 2 Machines Sabotaged . | . . . . . . . . . . . . . . . Garrisons Compromised . | . . . . . . . . . . . . . . . Overloaded Fab Kills . | . . . . . . . . . . . . . . . Hacking | -11 -10 -10 -9 -9 -9 -8 -8 -7 -7 -6 -6 -6 -6 -6 --------- Run | Scr Mat Min Mat Min Exi Min Mat Fac DSF Fac Ext Cet Arc Hub Machines Accessed 28 | . 5 . 2 . . 2 4 1 . 5 8 . . 1 Terminals 23 | . 4 . . . . 2 4 1 . 3 8 . . 1 Fabricators 2 | . . . . . . . . . . 2 . . . . Repair Stations . | . . . . . . . . . . . . . . . Recycling Units 3 | . 1 . 2 . . . . . . . . . . . Scanalyzers . | . . . . . . . . . . . . . . . Garrison Access . | . . . . . . . . . . . . . . . Total Hacks 72 | . 11 . 4 . . 8 12 2 . 11 21 . . 3 Successful 22 | . 3 . 1 . . 3 6 1 . 4 3 . . 1 Failed 50 | . 8 . 3 . . 5 6 1 . 7 18 . . 2 Catastrophic 9 | . . . . . . . 2 . . 2 5 . . . Database Lockouts . | . . . . . . . . . . . . . . . Manual 19 | . 2 . . . . 8 . . . 6 2 . . 1 Terminals 60 | . 7 . . . . 8 12 2 . 7 21 . . 3 Fabricators 4 | . . . . . . . . . . 4 . . . . Repair Stations . | . . . . . . . . . . . . . . . Recycling Units 8 | . 4 . 4 . . . . . . . . . . . Scanalyzers . | . . . . . . . . . . . . . . . Garrison Access . | . . . . . . . . . . . . . . . Terminal Hacks 20 | . 3 . . . . 3 6 1 . 3 3 . . 1 Robot Analysis 2 | . . . . . . . 2 . . . . . . . Prototype ID Bank 6 | . 1 . . . . 3 . . . . 2 . . . Open Door 1 | . . . . . . . . . . 1 . . . . Open DSF 1 | . . . . . . . . 1 . . . . . . Unreport Threat 4 | . . . . . . . 2 . . . 1 . . 1 Disarm Traps 1 | . . . . . . . . . . 1 . . . . Transport Status 1 | . . . . . . . 1 . . . . . . . Hauler Manifests 2 | . 1 . . . . . 1 . . . . . . . Zone Layout 2 | . 1 . . . . . . . . 1 . . . . Fabricator Hacks . | . . . . . . . . . . . . . . . Repair Station Hacks . | . . . . . . . . . . . . . . . Recycling Unit Hacks 1 | . . . 1 . . . . . . . . . . . Retrieve Components 1 | . . . 1 . . . . . . . . . . . Scanalyzer . | . . . . . . . . . . . . . . . Garrison Access Hacks . | . . . . . . . . . . . . . . . Unauthorized Hacks 1 | . . . . . . . . . . 1 . . . . Terminals 1 | . . . . . . . . . . 1 . . . . Operators 1 | . . . . . . . . . . 1 . . . . Fabricators . | . . . . . . . . . . . . . . . Repair Stations . | . . . . . . . . . . . . . . . Recycling Units . | . . . . . . . . . . . . . . . Scanalyzers . | . . . . . . . . . . . . . . . Garrison Access . | . . . . . . . . . . . . . . . Data Cores Recovered 1 | . . . . . . . . . . . 1 . . . Used 1 | . . . . . . . . . . . 1 . . . Hacking Detections 25 | . 5 . 2 . . 2 4 . . 3 8 . . 1 Full Trace Events 9 | . . . 1 . . 1 . . . 2 5 . . . Feedback Events . | . . . . . . . . . . . . . . . Feedback Blocked . | . . . . . . . . . . . . . . . Robot Schematics Acquired . | . . . . . . . . . . . . . . . Robots Built . | . . . . . . . . . . . . . . . Authchips . | . . . . . . . . . . . . . . . Time . | . . . . . . . . . . . . . . . Total Robot Build Rating . | . . . . . . . . . . . . . . . Part Schematics Acquired . | . . . . . . . . . . . . . . . Parts Built . | . . . . . . . . . . . . . . . Authchips . | . . . . . . . . . . . . . . . Time . | . . . . . . . . . . . . . . . Total Part Build Rating . | . . . . . . . . . . . . . . . Parts Repaired . | . . . . . . . . . . . . . . . Time . | . . . . . . . . . . . . . . . Parts Recycled . | . . . . . . . . . . . . . . . Recycled Matter . | . . . . . . . . . . . . . . . Retrieved Matter . | . . . . . . . . . . . . . . . Retrieved Components 2 | . . . 2 . . . . . . . . . . . Parts Scanalyzed . | . . . . . . . . . . . . . . . Part Schematics Acquired . | . . . . . . . . . . . . . . . Parts Damaged . | . . . . . . . . . . . . . . . Bothacking | -11 -10 -10 -9 -9 -9 -8 -8 -7 -7 -6 -6 -6 -6 -6 ------------ Run | Scr Mat Min Mat Min Exi Min Mat Fac DSF Fac Ext Cet Arc Hub Used RIF Installer . | . . . . . . . . . . . . . . . Robots Hacked 2 | . . . . . . . . . . . 2 . . . Non-combat 2 | . . . . . . . . . . . 2 . . . Combat . | . . . . . . . . . . . . . . . Robot Hacks Applied 2 | . . . . . . . . . . . 2 . . . parse_system 1 | . . . . . . . . . . . 1 . . . check_alert 1 | . . . . . . . . . . . 1 . . . Relay Couplers Released 1 | . . . . . . . . . . . . . . 1 Machine Destruction 1 | . . . . . . . . . . . . . . 1 Fabnet Peak Effective % . | . . . . . . . . . . . . . . . Robots Rewired 17 | . . . . . . . . . . . 17 . . . Allies Hacked . | . . . . . . . . . . . . . . . Hacks Repelled . | . . . . . . . . . . . . . . . Allies | -11 -10 -10 -9 -9 -9 -8 -8 -7 -7 -6 -6 -6 -6 -6 -------- Run | Scr Mat Min Mat Min Exi Min Mat Fac DSF Fac Ext Cet Arc Hub Total Allies 17 | . . . . . . . . . . . 17 . . . Largest Group 8 | . . . . . . . . . . . 8 2 . . Highest-Rated Group 235 | . . . . . . . . . . . 235 53 . . Highest-Rated Ally 39 | . . . . . . . . . . . 39 34 . . Total Orders . | . . . . . . . . . . . . . . . Ally Attacks 127 | . . . . . . . . . . . 117 10 . . Total Damage 2226 | . . . . . . . . . . . 2021 205 . . Kills 28 | . . . . . . . . . . . 25 3 . . Allies Corrupted . | . . . . . . . . . . . . . . . Allies Melted . | . . . . . . . . . . . . . . . Intel | -11 -10 -10 -9 -9 -9 -8 -8 -7 -7 -6 -6 -6 -6 -6 ------- Run | Scr Mat Min Mat Min Exi Min Mat Fac DSF Fac Ext Cet Arc Hub Robot Analysis Total 2 | . . . . . . . 2 . . . . . . . Derelict Logs Recovered 3 | . . 2 . 1 . . . . . . . . . . Drone Launches . | . . . . . . . . . . . . . . . Drone Recoveries . | . . . . . . . . . . . . . . . Exploration | -11 -10 -10 -9 -9 -9 -8 -8 -7 -7 -6 -6 -6 -6 -6 ------------- Run | Scr Mat Min Mat Min Exi Min Mat Fac DSF Fac Ext Cet Arc Hub Turns Passed 7225 | 86 434 525 240 563 371 872 947 7 218 314 1648 455 317 228 Spaces Moved 3415 | 41 215 256 100 319 231 530 336 3 115 154 761 150 131 73 Core . | . . . . . . . . . . . . . . . Treads 2837 | . . . 34 319 231 530 336 3 115 154 761 150 131 73 Legs 578 | 41 215 256 66 . . . . . . . . . . . Wheels . | . . . . . . . . . . . . . . . Hover . | . . . . . . . . . . . . . . . Flight . | . . . . . . . . . . . . . . . Fastest Speed 120 | 120 120 190 160 160 160 160 155 158 158 163 161 160 160 160 Average Speed 170 | 120 160 190 179 160 160 160 232 211 161 163 162 162 160 160 Slowest Speed 240 | 120 190 190 190 160 160 160 240 238 163 163 165 165 160 160 Overloaded Moves . | . . . . . . . . . . . . . . . Propulsion Burnouts . | . . . . . . . . . . . . . . . Robots Hopped . | . . . . . . . . . . . . . . . Cave-ins Triggered . | . . . . . . . . . . . . . . . Exploration Rate (%) 49 | 4 37 57 14 59 61 93 32 . 92 6 81 65 73 20 Regions Visited 14 Branch Regions 8 Pre-discovered Areas 2 | . . 1 . 1 . . . . . . . . . . Known Exits Taken 1 | . . . . . . . . 1 . . . . . . Unknown Exits Taken 12 | 1 1 1 1 1 1 1 1 . . 1 1 1 1 . Scrap Searched 6 | . . 2 . 3 . 1 . . . . . . . . Spaces Dug 13 | . . . . . . . . . . 9 . . . 4 Terrain Destroyed 531 | . . . . . . . 3 . 19 55 96 25 4 329 Melee 3 | . . . . . . . . . . . . . . 3 Projectile 38 | . . . . . . . . . . . 17 14 4 3 AOE 490 | . . . . . . . 3 . 19 55 79 11 . 323 Terrain Rammed . | . . . . . . . . . . . . . . . Walls Destroyed . | . . . . . . . . . . . . . . . Machines Disabled . | . . . . . . . . . . . . . . . Actions | -11 -10 -10 -9 -9 -9 -8 -8 -7 -7 -6 -6 -6 -6 -6 --------- Run | Scr Mat Min Mat Min Exi Min Mat Fac DSF Fac Ext Cet Arc Hub Total 4279 | 56 272 280 131 349 233 545 440 4 149 187 1037 264 205 127 Wait 113 | . . 15 4 11 . 4 21 . 1 8 2 11 34 2 Move 3401 | 40 214 255 99 318 230 529 335 2 114 153 760 149 130 73 Hop . | . . . . . . . . . . . . . . . Pick Up 80 | 2 13 1 4 3 3 . 14 . 7 2 9 10 12 . Fast Attach 28 | 1 3 . . . . 2 6 . 2 . 3 10 1 . Attach 30 | . . . 5 1 . . 2 2 . 2 2 7 1 8 Detach 4 | . . . . . . 1 . . 2 . . 1 . . Swap 69 | . 6 . 1 2 . 1 4 . 7 3 26 9 3 7 Drop 101 | . 12 1 3 2 . 3 22 . 12 . 19 15 7 5 Fire 332 | 13 23 8 15 12 . 5 36 . 4 19 100 52 17 28 Melee 3 | . . . . . . . . . . . . . . 3 Ram . | . . . . . . . . . . . . . . . Kick 1 | . 1 . . . . . . . . . . . . . Crush . | . . . . . . . . . . . . . . . Escape Stasis . | . . . . . . . . . . . . . . . Rewire 85 | . . . . . . . . . . . 85 . . . Trap 32 | . . . . . . . . . . . 31 . . 1 Miscellaneous . | . . . . . . . . . . . . . . . Route ------- -11/Scrapyard -10/Materials (discovered 2 exits: *Mat / [*Min]) -10/Mines -9/Materials -9/Mines -9/Exiles -8/Mines (discovered 2 exits: *Mat x2) -8/Materials -7/Factory -7/DSF -6/Factory -6/Extension (discovered 2 exits: [*Fac] / *Cet) -6/Cetus (discovered 2 exits: [*Fac] / [*Arc]) -6/Archives (discovered 3 exits: [*Fac] / *Hub x2) -6/Hub_04(d) (discovered 1 exit: [*Fac]) History --------- Turn | Location | Event 4 | -11/Scrapyard | Discovered new exit (range 3) 87 | -11/Scrapyard | Entered Materials 314 | -10/Materials | Build established: Mutant 370 | -10/Materials | Discovered new exit (range 5) 449 | -10/Materials | Discovered new exit (range 10) 521 | -10/Materials | Entered Mines 528 | -10/Mines | Received a Rocket Launcher from a helpful Derelict 692 | -10/Mines | Learned Materials emergency access door positions 811 | -10/Mines | Assembled infested the area 816 | -10/Mines | Assisted by a Guerilla fighting off Assembled 879 | -10/Mines | Core integrity fell below 50% 1001 | -10/Mines | Discovered new exit (range 5) 1046 | -10/Mines | Entered Materials 1046 | -9/Materials | Evolved 2 slots: Propulsion x1, Utility x1 1247 | -9/Materials | Discovered new exit (range 16) 1286 | -9/Materials | Entered Mines 1538 | -9/Mines | Learned location of Zion (-6) 1656 | -9/Mines | A weapon hastily lodged in a ceiling crevice suddenly fell to the ground 1841 | -9/Mines | Deemed a non-threat by the Exiles lab entrance 1843 | -9/Mines | Discovered new exit (range 5) 1849 | -9/Mines | Entered Exiles 1892 | -9/Exiles | Met 8R-AWN 1918 | -9/Exiles | Met EX-HEX 2009 | -9/Exiles | Met EX-DEC 2042 | -9/Exiles | Visited The Gauntlet 2206 | -9/Exiles | Discovered new exit (range 10) 2220 | -9/Exiles | Entered Mines 3053 | -8/Mines | Discovered new exit (range 7) 3074 | -8/Mines | Discovered new exit (range 11) 3092 | -8/Mines | Entered Materials 3092 | -8/Materials | Evolved 2 slots: Utility x1, Weapon x1 3405 | -8/Materials | Build established: Scavenger-Skirmisher 3881 | -8/Materials | Discovered new exit (range 16) 3921 | -8/Materials | Build established: Skirmisher 4039 | -8/Materials | Entered Factory 4039 | -7/Factory | Evolved 2 slots: Propulsion x1, Utility x1 4046 | -7/Factory | Identified exit to DSF 4046 | -7/Factory | Entered DSF 4047 | -7/DSF | Joined Warlord attack on 0b10 via DSF 4069 | -7/DSF | Additional patrols routed to DSF 4158 | -7/DSF | Discovered new exit (range 15) 4264 | -7/DSF | Entered Factory 4264 | -6/Factory | Evolved 2 slots: Propulsion x1, Utility x1 4265 | -6/Factory | 1 allies followed out of DSF 4538 | -6/Factory | Discovered new exit (range 15) 4578 | -6/Factory | Entered Extension 5303 | -6/Extension | Disrupted transfer network 5461 | -6/Extension | Build established: Commander-Mutant 5632 | -6/Extension | Spotted B-75 Beast 5661 | -6/Extension | Allies destroyed B-75 Beast 6191 | -6/Extension | Discovered new exit (range 10) 6193 | -6/Extension | Discovered new exit (range 6) 6226 | -6/Extension | Entered Cetus 6226 | -6/Cetus | Accompanied by 2 allies 6250 | -6/Cetus | Spotted Cetus Guard 6250 | -6/Cetus | Spotted Cetus Guard 6260 | -6/Cetus | Destroyed Cetus Guard 6260 | -6/Cetus | Spotted Cetus Guard 6269 | -6/Cetus | Spotted Cetus Guard 6271 | -6/Cetus | Allies destroyed Cetus Guard 6272 | -6/Cetus | Destroyed Cetus Guard 6275 | -6/Cetus | Destroyed Cetus Guard 6313 | -6/Cetus | Lost 3 parts (2u1w) 6425 | -6/Cetus | Discovered new exit (range 16) 6453 | -6/Cetus | Spotted Cetus Guard 6454 | -6/Cetus | Spotted Cetus Guard 6457 | -6/Cetus | Spotted Cetus Guard 6458 | -6/Cetus | Destroyed Cetus Guard 6472 | -6/Cetus | Destroyed Cetus Guard 6473 | -6/Cetus | Spotted Cetus Guard 6481 | -6/Cetus | Destroyed Cetus Guard 6482 | -6/Cetus | Core integrity fell below 50% 6544 | -6/Cetus | Destroyed Cetus Guard 6585 | -6/Cetus | Discovered new exit (range 15) 6595 | -6/Cetus | Lost 6 parts (1p2u3w) 6598 | -6/Cetus | Destroyed 8 combat bots 6601 | -6/Cetus | Build established: Scavenger-Gunner 6601 | -6/Cetus | Met Revision 17 6681 | -6/Cetus | Entered Archives 6862 | -6/Archives | Discovered new exit (range 16) 6897 | -6/Archives | Discovered new exit (range 18) 6955 | -6/Archives | Discovered new exit (range 16) 6998 | -6/Archives | Entered Hub_04(d) 7109 | -6/Hub_04(d) | Network Hub disabled 7112 | -6/Hub_04(d) | Network Hub disabled 7126 | -6/Hub_04(d) | Spotted Lightning 7133 | -6/Hub_04(d) | Spotted Lightning 7134 | -6/Hub_04(d) | Destroyed Lightning 7148 | -6/Hub_04(d) | Core integrity fell below 20% 7157 | -6/Hub_04(d) | Spotted Lightning 7166 | -6/Hub_04(d) | System corruption reached 10% 7197 | -6/Hub_04(d) | Spotted Lightning 7203 | -6/Hub_04(d) | Spotted Lightning 7204 | -6/Hub_04(d) | Spotted Lightning 7211 | -6/Hub_04(d) | Discovered new exit (range 14) 7226 | -6/Hub_04(d) | Destroyed by Y-54 Guardian with Flak Gun Last Messages --------------- 07211_ Imp. Treads destroyed. 07211_ Penetrated by EMDS Slug. 07211_ Quantum Reactor destroyed. 07212_ L-41 Fighter system terminally corrupted. 07212_ EMDS Slug penetrates Earth. 07213_ Y-54 Guardian misfires. 07214_ Trap Extractor dropped EM Surge Trap. 07216_ Y-54 Guardian IFF system glitched. 07217_ Trap Extractor dropped EM Surge Trap. 07217_ Installed EM Surge Trap. 07217_ I-47 Archangel suffers critical hit (Burn). 07218_ Penetrated by EMDS Slug. 07219_ P XK ZCT=B2M9K>W|XH9 YONB 8VSN F 07219_ Penetrated by EMDS Slug. 07223_ Plasma Cannon destroyed. 07223_ EMDS Slug penetrates Wall. 07224_ Lightning triggered EM Surge Trap. 07224_ The floor emits a surge of raw power. 07224_ Penetrated by EMDS Slug. 07225_ Critical hit (Burn: +37). Map ----- +----------------------------------------------------+ | ##### ########/#########?#/########## #?#? "?? | | ###?# ## ! ########## #### #### ? | | ??### ## + ###? ####?##### | | ??#?# ## ############"## ###? #####?#### | | ???## ## [ """" # # # ## # # | | #### # """" # =#! ! ## # # | | # """" / " %"! %=%| # " """"? | | + """" # |#= = != " "" | | # ! #""""""""""""""""""# #? "" | | #### # ## "# # "" | | ?###+############" u % # #"##""" | | "" # ? ## #### = ! """""" | | # """" ## ## # = " | | "" # """" ##?#? # = = %=! " | | # """" # #### %= = """""" | | "" # """" ##??# + % =%* R " " | | # ##### # g = " | | "" # ??? ##?## # g R*%% " | | ?? # ? ? + ##### =!%| """" | | ???####???#?###?# #### =% | | #????##?#?####### ### g | | ####???#?#??##??# ?# # ]hh & ### | | #?#?????##??#??## #### !!hi& #### | | ???#???#???##### ### !%h #### | | ##?? #??#???## ; k uYh == ###? | | ??#? ??????#?# ; k @ #?## | | ?????#?#?????# ; ###### #### | | ?????????????###??###?##" " #??# | | ??????????????? ?? " * " #### | | ??????????????? ??? "" "?#??? | | ?????????????????"? [! " #??? | | ?????????????????? =%! "????? | | ????????????????? ## # ##???? | | ???????????????? ## #; !" ?????? | | ???????????????? ??## ## ##### G???????? | | ???????????????? ????###?###??? ??????????? | | ?????????????????? ???#???#?##???????????????? | | ???????????????????? ???????#???????????????????? | | ????????????????????##???????????????????????????? | | | | | | | | | | | | | | | | | | | | | | | +----------------------------------------------------+ Best States ------------- Heat Dissipation 64 Energy Generation 25 Energy Capacity 350 Matter Stores 300 Matter Capacity 300 Sight Range 16 Robot Scan Range 15 Terrain Scan Range 20 Terrain Scan Density 210 Armor Coverage 1350 Evasion (%) 55 Targeting Accuracy 10 Recoil Reduction 5 Offensive Hacking 24 Defensive Hacking 12 Trap Extractor Capacity 4 Item Schematics ----------------- None Robot Schematics ------------------ None Fabricated ------------ Nothing Alien Tech Used ----------------- None Achievements -------------- Hehehe Challenges ------------ None Game ------ Seed ActiveSpreadProtomatter Manual? 0 Play Time 01:28:35 Cumulative 553.5 hours Start 2022.02.05 @ 17:39:21 End 2022.02.05 @ 19:10:21 Sessions 1 Manual Loads 0 Difficulty Rogue Special Mode None Game No. 129 Rogue 98 Adventurer 31 Explorer 0 Win Type - Total 27 Types 22/0/2/3/0/0/0/0/0 Lore% 74 Gallery% 81 Achievement% 65 Wizard Run 0 Options --------- ASCII 0 Keyboard 0 Movement Arrows Keybinds 0 Fullscreen 1 Font 20/Terminus Map View 66x50 Tactical HUD 1 Map Filters NONE Filters NONE Steam 1 RUN: b59530ba-676c-4528-8e75-08635179e353